fUST/lending_fUST_20250602
["ID","MTS","AMOUNT","RATE_DAILY","PERIOD"]
[363752732,1748861443997,-430.0,0.00018899,2]
[363752734,1748861444008,-430.0,0.00018899,2]
[363752736,1748861444017,-2403.45906607,0.000189,2]
[363752738,1748861444027,-2000.0,0.0001892,2]
[363752740,1748861444036,-3211.32007833,0.00018934,2]
[363752742,1748861444046,-152.062489,0.00018935,2]
[363752744,1748861444056,-151.0,0.00018935,2]
[363752746,1748861444066,-1500.0,0.00019033,2]
[363752748,1748861444075,-1506.98,0.00019064,2]
[363752750,1748861444085,-527.66,0.00019064,2]
[363752753,1748861444094,-560.0,0.00019064,2]
[363752755,1748861444104,-681.85,0.00019064,2]
[363752756,1748861444113,-430.0,0.00019064,2]
[363752759,1748861444123,-430.0,0.00019064,2]
[363752761,1748861444133,-724.43,0.00019064,2]
[363752763,1748861444142,-151.0,0.00019064,2]
[363752764,1748861444152,-430.0,0.00019064,2]
[363752766,1748861444161,-430.0,0.00019064,2]
[363752768,1748861444171,-1724.93,0.00019064,2]
[363752770,1748861444181,-3273.3,0.00019064,2]
[363752772,1748861444190,-2305.16,0.00019064,2]
[363752774,1748861444199,-1638.59,0.00019064,2]
[363752776,1748861444208,-463.95,0.00019065,2]
[363752778,1748861444218,-640.71,0.00019065,2]
[363752780,1748861444227,-1939.29,0.00019065,2]
[363752782,1748861444237,-151.0,0.00019065,2]
[363752784,1748861444246,-2068.83,0.00019065,2]
[363752786,1748861444255,-916.12,0.00019065,2]
[363752788,1748861444266,-430.0,0.00019065,2]
[363752790,1748861444276,-430.0,0.00019065,2]
[363752792,1748861444285,-855.67,0.00019065,2]
[363752794,1748861444295,-465.62,0.00019065,2]
[363752796,1748861444305,-576.77,0.00019065,2]
[363752798,1748861444315,-430.0,0.00019065,2]
[363752800,1748861444324,-430.0,0.00019065,2]
[363752802,1748861444333,-755.34,0.00019065,2]
[363752804,1748861444343,-5039.62,0.00019065,2]
[363752806,1748861444352,-274.0347953,0.00019068,2]
[363752808,1748861444361,-153.0,0.00019068,2]
[363752810,1748861444371,-151.0,0.00019086,2]
[363752812,1748861444380,-151.0,0.00019088,2]
[363752814,1748861444390,-165.418167,0.00019088,2]
[363752816,1748861444399,-165.418167,0.00019088,2]
[363752818,1748861444408,-3211.32007833,0.00019141,2]
[363752820,1748861444418,-504.25651522,0.00019144,2]
[363752822,1748861444431,-430.0,0.00019173,2]
[363752824,1748861444440,-430.0,0.00019173,2]
[363752826,1748861444449,-151.0,0.00019178,2]
[363752828,1748861444459,-165.418167,0.00019178,2]
[363752830,1748861444470,-165.418167,0.00019178,2]
[363752832,1748861444480,-151.0,0.00019178,2]
[363752834,1748861444490,-500.0,0.00019178,2]
[363752836,1748861444500,-500.0,0.00019178,2]
[363752838,1748861444511,-500.0,0.00019178,2]
[363752840,1748861444520,-500.0,0.00019178,2]
[363752842,1748861444530,-500.0,0.00019178,2]
[363752844,1748861444539,-500.0,0.00019178,2]
[363752846,1748861444550,-500.0,0.00019178,2]
[363752848,1748861444559,-276.114422,0.00019178,2]
[363752850,1748861444570,-500.0,0.00019178,2]
[363752852,1748861444580,-500.0,0.00019178,2]
[363752854,1748861444590,-500.0,0.00019178,2]
[363752856,1748861444599,-460.61382357,0.00019178,2]
[363752858,1748861444609,-500.0,0.00019178,2]
[363752860,1748861444619,-177.40605529,0.00019178,2]
[363752862,1748861444628,-500.0,0.00019178,2]
[363752864,1748861444637,-500.0,0.00019178,2]
[363752866,1748861444647,-500.0,0.00019178,2]
[363752867,1748861444655,-500.0,0.00019178,2]
[363752868,1748861444664,-500.0,0.00019178,2]
[363752869,1748861444674,-500.0,0.00019178,2]
[363752870,1748861444683,-500.0,0.00019178,2]
[363752871,1748861444693,-151.0,0.00019178,2]
[363752872,1748861444702,-377.218635,0.00019178,2]
[363752873,1748861444711,-1700.77139173,0.00019181,2]
[363752874,1748861444720,-156.587,0.00019233,2]
[363752875,1748861444729,-151.0,0.00019234,2]
[363752876,1748861444738,-151.0,0.00019234,2]
[363752877,1748861444746,-151.0,0.00019234,2]
[363752878,1748861444755,-151.0,0.00019234,2]
[363752879,1748861444764,-273.13548576,0.00019234,2]
[363752880,1748861444773,-151.47158686,0.00019234,2]
[363752881,1748861444782,-207.4,0.00019234,2]
[363752882,1748861444791,-1500.0,0.00019234,2]
[363752883,1748861444800,-500.0,0.00019234,2]
[363752884,1748861444808,-1500.0,0.00019234,2]
[363752885,1748861444817,-500.0,0.00019234,2]
[363752886,1748861444826,-1500.0,0.00019234,2]
[363752887,1748861444835,-500.0,0.00019234,2]
[363752888,1748861444843,-1500.0,0.00019234,2]
[363752889,1748861444853,-500.0,0.00019234,2]
[363752890,1748861444864,-1500.0,0.00019234,2]
[363752892,1748861444875,-500.0,0.00019234,2]
[363752893,1748861444884,-1500.0,0.00019234,2]
[363752895,1748861444893,-5000.0,0.00019234,2]
[363752897,1748861444903,-500.0,0.00019234,2]
[363752899,1748861444911,-1500.0,0.00019234,2]
[363752911,1748861445020,-500.0,0.00019234,2]
[363752913,1748861445031,-1500.0,0.00019234,2]
[363752915,1748861445041,-1500.0,0.00019234,2]
[363752917,1748861445051,-500.0,0.00019234,2]
[363752919,1748861445062,-1500.0,0.00019234,2]
[363752921,1748861445072,-500.0,0.00019234,2]
[363752923,1748861445081,-1500.0,0.00019234,2]
[363752925,1748861445091,-500.0,0.00019234,2]
[363752927,1748861445103,-1500.0,0.00019234,2]
[363752929,1748861445113,-500.0,0.00019234,2]
[363752931,1748861445122,-790.85449925,0.00019234,2]
[363752933,1748861445131,-500.0,0.00019234,2]
[363752935,1748861445140,-500.0,0.00019234,2]
[363752937,1748861445149,-500.0,0.00019234,2]
[363752939,1748861445159,-500.0,0.00019234,2]
[363752941,1748861445168,-202.91049612,0.00019234,2]
[363752943,1748861445178,-162.380719,0.00019288,2]
[363752945,1748861445187,-151.0,0.000193,2]
[363752947,1748861445197,-151.0,0.00019328,2]
[363752949,1748861445207,-151.0,0.00019329,2]
[363752951,1748861445216,-151.0,0.00019329,2]
[363752953,1748861445226,-151.0,0.00019329,2]
[363752955,1748861445235,-151.0,0.00019329,2]
[363752957,1748861445245,-151.0,0.00019329,2]
[363752959,1748861445254,-151.0,0.00019329,2]
[363752961,1748861445263,-151.0,0.00019329,2]
[363752963,1748861445272,-151.600532,0.00019329,2]
[363752965,1748861445282,-151.0,0.00019329,2]
[363752967,1748861445292,-151.0,0.00019329,2]
[363752969,1748861445302,-151.0,0.00019329,2]
[363752971,1748861445312,-151.0,0.00019329,2]
[363752973,1748861445321,-151.0,0.00019329,2]
[363752976,1748861445331,-151.0,0.00019329,2]
[363752978,1748861445340,-151.0,0.00019329,2]
[363752981,1748861445349,-151.0,0.00019329,2]
[363752983,1748861445358,-211.84498,0.00019329,2]
[363752985,1748861445368,-151.0,0.00019329,2]
[363752987,1748861445378,-151.0,0.00019329,2]
[363752989,1748861445388,-151.0,0.00019329,2]
[363752991,1748861445397,-100000.0,0.00019329,2]
[363752993,1748861445407,-1506.98,0.00019338,2]
[363752995,1748861445416,-527.66,0.00019338,2]
[363752996,1748861445429,-681.85,0.00019338,2]
[363752999,1748861445440,-430.0,0.00019338,2]
[363753001,1748861445450,-430.0,0.00019338,2]
[363753004,1748861445460,-724.43,0.00019338,2]
[363753007,1748861445471,-430.0,0.00019338,2]
[363753011,1748861445481,-430.0,0.00019338,2]
[363753014,1748861445490,-1724.93,0.00019338,2]
[363753017,1748861445501,-3273.3,0.00019338,2]
[363753019,1748861445513,-2305.16,0.00019338,2]
[363753021,1748861445523,-1638.59,0.00019338,2]
[363753023,1748861445533,-151.743375,0.00019339,2]
[363753025,1748861445543,-463.95,0.00019339,2]
[363753027,1748861445553,-640.71,0.00019339,2]
[363753029,1748861445563,-1939.29,0.00019339,2]
[363753031,1748861445573,-2068.83,0.00019339,2]
[363753033,1748861445582,-916.12,0.00019339,2]
[363753035,1748861445592,-430.0,0.00019339,2]
[363753037,1748861445602,-430.0,0.00019339,2]
[363753039,1748861445611,-855.67,0.00019339,2]
[363753041,1748861445621,-465.62,0.00019339,2]
[363753043,1748861445631,-576.77,0.00019339,2]
[363753045,1748861445641,-430.0,0.00019339,2]
[363753047,1748861445650,-430.0,0.00019339,2]
[363753049,1748861445659,-755.34,0.00019339,2]
[363753051,1748861445669,-5039.62,0.00019339,2]
[363753053,1748861445678,-168.94265941,0.00019343,2]
[363753054,1748861445687,-3211.32007833,0.00019348,2]
[363753056,1748861445697,-151.0,0.000194,2]
[363753058,1748861445706,-151.0,0.00019446,2]
[363753060,1748861445715,-571.75314585,0.00019447,2]
[363753062,1748861445725,-430.0,0.00019447,2]
[363753064,1748861445734,-151.0,0.00019449,2]
[363753066,1748861445743,-165.418167,0.00019449,2]
[363753068,1748861445753,-165.418167,0.00019449,2]
[363753070,1748861445762,-2500.0,0.00019468,2]
[363753072,1748861445771,-3211.32007833,0.00019555,2]
[363753074,1748861445781,-112667.52729257,0.00019611,2]
[363753077,1748861445801,-1000.0,0.00019611,2]
[363753080,1748861445812,-3659.979614,0.00019611,2]
[363753082,1748861445823,-107294.96886343,0.00019611,2]
[363753084,1748861445833,-1506.98,0.00019612,2]
[363753086,1748861445842,-527.66,0.00019612,2]
[363753088,1748861445852,-681.85,0.00019612,2]
[363753090,1748861445861,-430.0,0.00019612,2]
[363753092,1748861445871,-430.0,0.00019612,2]
[363753094,1748861445880,-724.43,0.00019612,2]
[363753096,1748861445890,-430.0,0.00019612,2]
[363753098,1748861445899,-430.0,0.00019612,2]
[363753100,1748861445908,-1724.93,0.00019612,2]
[363753102,1748861445918,-3273.3,0.00019612,2]
[363753104,1748861445928,-2305.16,0.00019612,2]
[363753106,1748861445937,-1638.59,0.00019612,2]
[363753108,1748861445947,-463.95,0.00019613,2]
[363753110,1748861445957,-640.71,0.00019613,2]
[363753112,1748861445966,-1939.29,0.00019613,2]
[363753114,1748861445975,-2068.83,0.00019613,2]
[363753115,1748861445986,-916.12,0.00019613,2]
[363753117,1748861445995,-430.0,0.00019613,2]
[363753119,1748861446006,-430.0,0.00019613,2]
[363753121,1748861446015,-855.67,0.00019613,2]
[363753123,1748861446025,-465.62,0.00019613,2]
[363753125,1748861446035,-576.77,0.00019613,2]
[363753127,1748861446045,-430.0,0.00019613,2]
[363753129,1748861446055,-430.0,0.00019613,2]
[363753131,1748861446065,-755.34,0.00019613,2]
[363753133,1748861446075,-5039.62,0.00019613,2]
[363753136,1748861446087,-2000.0,0.00019616,2]
[363753138,1748861446097,-2000.0,0.00019616,2]
[363753139,1748861446107,-2000.0,0.00019616,2]
[363753141,1748861446116,-2000.0,0.00019616,2]
[363753143,1748861446127,-1655.50454497,0.00019616,2]
[363753145,1748861446137,-151.0,0.00019616,2]
[363753147,1748861446146,-153.0,0.00019616,2]
[363753149,1748861446156,-153.0,0.00019616,2]
[363753151,1748861446167,-153.0,0.00019616,2]
[363753153,1748861446177,-173.124,0.00019626,2]
[363753155,1748861446187,-651.504,0.00019626,2]
[363753157,1748861446197,-173.34707509,0.00019653,2]
[363753159,1748861446210,-151.0,0.00019692,2]
[363753161,1748861446219,-321.011762,0.00019692,2]
[363753163,1748861446229,-151.0,0.00019692,2]
[363753165,1748861446238,-321.011762,0.00019692,2]
[363753167,1748861446250,-1075.877334,0.00019692,2]
[363753170,1748861446260,-1075.877334,0.00019692,2]
[363753172,1748861446271,-232.833121,0.00019692,2]
[363753174,1748861446280,-232.833121,0.00019692,2]
[363753176,1748861446290,-171.103458,0.00019692,2]
[363753178,1748861446300,-171.103458,0.00019692,2]
[363753180,1748861446311,-151.0,0.00019692,2]
[363753182,1748861446320,-579.678781,0.00019692,2]
[363753184,1748861446330,-579.678781,0.00019692,2]
[363753186,1748861446339,-151.0,0.000197,2]
[363753188,1748861446349,-151.0,0.000197,2]
[363753190,1748861446358,-430.0,0.00019721,2]
[363753192,1748861446370,-3211.32007833,0.00019762,2]
[363753194,1748861446379,-5000.0,0.00019782,2]
[363753196,1748861446388,-587.0,0.00019816,2]
[363753198,1748861446399,-587.0,0.00019816,2]
[363753200,1748861446408,-5000.0,0.00019874,2]
[363753201,1748861446418,-1506.98,0.00019886,2]
[363753203,1748861446432,-527.66,0.00019886,2]
[363753205,1748861446442,-681.85,0.00019886,2]
[363753207,1748861446451,-430.0,0.00019886,2]
[363753209,1748861446461,-418.860623,0.00019886,2]
[363753211,1748861446471,-724.43,0.00019886,2]
[363753213,1748861446479,-430.0,0.00019886,2]
[363753215,1748861446489,-1724.93,0.00019886,2]
[363753217,1748861446498,-3273.3,0.00019886,2]
[363753219,1748861446509,-2305.16,0.00019886,2]
[363753221,1748861446519,-1638.59,0.00019886,2]
[363753223,1748861446529,-463.95,0.00019887,2]
[363753225,1748861446538,-640.71,0.00019887,2]
[363753227,1748861446547,-1939.29,0.00019887,2]
[363753229,1748861446558,-2068.83,0.00019887,2]
[363753231,1748861446568,-916.12,0.00019887,2]
[363753233,1748861446578,-430.0,0.00019887,2]
[363753235,1748861446588,-430.0,0.00019887,2]
[363753237,1748861446598,-855.67,0.00019887,2]
[363753239,1748861446609,-465.62,0.00019887,2]
[363753242,1748861446620,-576.77,0.00019887,2]
[363753244,1748861446630,-430.0,0.00019887,2]
[363753246,1748861446639,-430.0,0.00019887,2]
[363753248,1748861446648,-755.34,0.00019887,2]
[363753250,1748861446658,-5039.62,0.00019887,2]
[363753251,1748861446668,-151.0,0.00019887,2]
[363753254,1748861446678,-166.48615629,0.00019892,2]
[363753256,1748861446690,-1700.77139173,0.00019892,2]
[363753258,1748861446700,-4350.54348051,0.000199,2]
[363753260,1748861446710,-151.0,0.000199,2]
[363753261,1748861446719,-151.0,0.000199,2]
[363753263,1748861446729,-151.0,0.000199,2]
[363753265,1748861446738,-155.0,0.00019916,2]
[363753267,1748861446748,-3211.32007833,0.00019969,2]
[363753269,1748861446758,-152.222893,0.00019969,2]
[363753271,1748861446767,-151.0,0.00019969,2]
[363753273,1748861446780,-151.0,0.00019969,2]
[363753275,1748861446789,-151.666956,0.00019969,2]
[363753277,1748861446799,-151.0,0.00019969,2]
[363753279,1748861446809,-151.0,0.00019969,2]
[363753281,1748861446819,-265.122918,0.00019969,2]
[363753283,1748861446828,-151.0,0.00019969,2]
[363753285,1748861446837,-151.0,0.00019969,2]
[363753287,1748861446846,-152.379498,0.00019969,2]
[363753289,1748861446856,-151.0,0.00019969,2]
[363753292,1748861446865,-122.37306892,0.00019969,2]
[363753307,1748861446998,-28.62693108,0.00019969,2]
[363753309,1748861447008,-500.0,0.00019973,2]
[363753311,1748861447018,-500.0,0.00019973,2]
[363753313,1748861447027,-500.0,0.00019973,2]
[363753315,1748861447036,-500.0,0.00019973,2]
[363753317,1748861447045,-500.0,0.00019973,2]
[363753319,1748861447054,-399.31999595,0.00019973,2]
[363753321,1748861447064,-500.0,0.00019973,2]
[363753323,1748861447074,-500.34728116,0.00019973,2]
[363753325,1748861447083,-160.22927135,0.00019973,2]
[363753327,1748861447092,-500.0,0.00019973,2]
[363753329,1748861447103,-500.0,0.00019973,2]
[363753331,1748861447112,-500.0,0.00019973,2]
[363753333,1748861447122,-500.0,0.00019973,2]
[363753335,1748861447131,-159.25883467,0.00019973,2]
[363753337,1748861447140,-450.50530877,0.00019973,2]
[363753339,1748861447152,-500.68447698,0.00019973,2]
[363753341,1748861447161,-400.70791248,0.00019973,2]
[363753343,1748861447171,-500.0,0.00019973,2]
[363753345,1748861447180,-500.0,0.00019973,2]
[363753347,1748861447189,-500.0,0.00019973,2]
[363753348,1748861447198,-500.0,0.00019973,2]
[363753349,1748861447208,-500.0,0.00019973,2]
[363753350,1748861447217,-500.0,0.00019973,2]
[363753351,1748861447226,-500.0,0.00019973,2]
[363753361,1748861447334,-500.0,0.00019973,2]
[363753364,1748861447346,-500.0,0.00019973,2]
[363753366,1748861447356,-632.26476029,0.00019973,2]
[363753368,1748861447366,-503.02987642,0.00019973,2]
[363753370,1748861447376,-502.06570242,0.00019973,2]
[363753372,1748861447386,-500.0,0.00019973,2]
[363753374,1748861447396,-500.0,0.00019973,2]
[363753376,1748861447406,-399.50026983,0.00019973,2]
[363753399,1748861447627,-280.838181,0.00018935,2]
[363753401,1748861447637,-100.49973017,0.00019973,2]
[363753403,1748861447647,-500.0,0.00019973,2]
[363753405,1748861447656,-360.08328903,0.00019973,2]
[363753407,1748861447666,-500.0,0.00019973,2]
[363753409,1748861447675,-500.0,0.00019973,2]
[363753411,1748861447685,-500.0,0.00019973,2]
[363753413,1748861447694,-502.47866998,0.00019973,2]
[363753415,1748861447704,-500.0,0.00019973,2]
[363753417,1748861447713,-500.0,0.00019973,2]
[363753419,1748861447723,-500.0,0.00019973,2]
[363753421,1748861447733,-500.0,0.00019973,2]
[363753423,1748861447743,-501.30290786,0.00019973,2]
[363753425,1748861447753,-500.0,0.00019973,2]
[363753428,1748861447763,-538.8238479,0.00019973,2]
[363753430,1748861447773,-500.0,0.00019973,2]
[363753432,1748861447783,-217.33035506,0.00019973,2]
[363753434,1748861447793,-538.80581164,0.00019973,2]
[363753436,1748861447802,-500.0,0.00019973,2]
[363753437,1748861447811,-600.0,0.00019973,2]
[363753439,1748861447821,-271.76850087,0.00019973,2]
[363753441,1748861447830,-151.0,0.00019973,2]
[363753443,1748861447839,-151.0,0.00019973,2]
[363753445,1748861447848,-151.0,0.00019973,2]
[363753447,1748861447857,-151.0,0.00019973,2]
[363753449,1748861447867,-3303.12607027,0.00019992,2]
[363753452,1748861447879,-520.02164163,0.00019992,2]
[363753455,1748861447906,-29212.1513212,0.00019992,2]
[363753457,1748861447917,-585.13435132,0.00019992,2]
[363753459,1748861447929,-9562.89274299,0.00019992,2]
[363753482,1748861448139,-430.0,0.00016599,2]
[363753484,1748861448149,-430.0,0.00016599,2]
[363753486,1748861448159,-430.0,0.00016873,2]
[363753488,1748861448169,-430.0,0.00016873,2]
[363753490,1748861448179,-430.0,0.00017147,2]
[363753492,1748861448188,-230.37555558,0.00017147,2]
[363753495,1748861448205,-199.62444442,0.00017147,2]
[363753497,1748861448215,-430.0,0.00017421,2]
[363753499,1748861448224,-15878.81708756,0.00019992,2]
[363753501,1748861448236,-10439.99999999,0.00019992,2]
[363755517,1748862324254,317.84742546,0.00021917,60]
[363755593,1748862399185,158.704216,0.00013699,2]
[363755594,1748862429335,200.0,0.00024649,120]
[363755619,1748862632183,-4091.92785687,0.00016233,2]
[363755620,1748862632195,-286.3075416,0.00016397,2]
[363755621,1748862632206,-167.31844687,0.00016495,2]
[363755622,1748862632217,-300.0,0.00016594,2]
[363755623,1748862632228,-430.0,0.00016594,2]
[363755624,1748862632239,-430.0,0.00016594,2]
[363755625,1748862632250,-807.56,0.00016594,2]
[363755626,1748862632261,-430.0,0.00016594,2]
[363755627,1748862632272,-430.0,0.00016594,2]
[363755628,1748862632290,-430.0,0.00016594,2]
[363755629,1748862632301,-430.0,0.00016594,2]
[363755630,1748862632312,-430.0,0.00016594,2]
[363755631,1748862632324,-1621.71,0.00016594,2]
[363755632,1748862632335,-3115.92,0.00016594,2]
[363755633,1748862632346,-430.0,0.00016594,2]
[363755634,1748862632357,-430.0,0.00016594,2]
[363755635,1748862632366,-420.56,0.00016594,2]
[363755636,1748862632376,-430.0,0.00016594,2]
[363755637,1748862632387,-430.0,0.00016594,2]
[363755638,1748862632397,-1471.37,0.00016594,2]
[363755639,1748862632408,-2277.84,0.00016594,2]
[363755640,1748862632418,-430.0,0.00016595,2]
[363755641,1748862632429,-1394.22,0.00016595,2]
[363755642,1748862632439,-430.0,0.00016595,2]
[363755643,1748862632449,-573.88,0.00016595,2]
[363755644,1748862632459,-430.0,0.00016595,2]
[363755645,1748862632470,-430.0,0.00016595,2]
[363755646,1748862632480,-430.0,0.00016595,2]
[363755647,1748862632490,-430.0,0.00016595,2]
[363755648,1748862632501,-430.0,0.00016595,2]
[363755649,1748862632511,-720.83,0.00016595,2]
[363755650,1748862632521,-430.0,0.00016595,2]
[363755651,1748862632536,-430.0,0.00016595,2]
[363755652,1748862632546,-430.0,0.00016595,2]
[363755653,1748862632556,-430.0,0.00016595,2]
[363755654,1748862632566,-430.0,0.00016595,2]
[363755655,1748862632576,-430.0,0.00016595,2]
[363755656,1748862632585,-430.0,0.00016595,2]
[363755657,1748862632600,-430.0,0.00016595,2]
[363755658,1748862632611,-1127.52,0.00016595,2]
[363755659,1748862632622,-430.0,0.00016595,2]
[363755660,1748862632632,-500.0,0.00016595,2]
[363755661,1748862632642,-500.0,0.00016595,2]
[363755662,1748862632652,-264.07918391,0.00016595,2]
[363755663,1748862632662,-500.0,0.00016595,2]
[363755664,1748862632673,-466.31065043,0.00016595,2]
[363755665,1748862632683,-430.0,0.00016595,2]
[363755666,1748862632694,-430.0,0.00016595,2]
[363755667,1748862632703,-450.0,0.00016595,2]
[363755668,1748862632714,-500.0,0.00016595,2]
[363755669,1748862632723,-430.0,0.00016595,2]
[363755670,1748862632734,-430.0,0.00016595,2]
[363755671,1748862632744,-430.0,0.00016595,2]
[363755672,1748862632754,-430.0,0.00016595,2]
[363755673,1748862632764,-430.0,0.00016595,2]
[363755674,1748862632778,-430.0,0.00016595,2]
[363755675,1748862632789,-430.0,0.00016596,2]
[363755676,1748862632798,-430.0,0.00016596,2]
[363755677,1748862632809,-430.0,0.00016596,2]
[363755678,1748862632819,-458.35079593,0.00016596,2]
[363755679,1748862632833,-440.44128043,0.00016596,2]
[363755680,1748862632843,-430.0,0.00016596,2]
[363755681,1748862632853,-525.43150531,0.00016596,2]
[363755682,1748862632863,-442.68339239,0.00016596,2]
[363755683,1748862632873,-430.0,0.00016596,2]
[363755684,1748862632883,-430.0,0.00016596,2]
[363755685,1748862632893,-430.0,0.00016596,2]
[363755686,1748862632903,-430.0,0.00016596,2]
[363755687,1748862632913,-430.0,0.00016596,2]
[363755688,1748862632923,-490.03119431,0.00016596,2]
[363755689,1748862632933,-430.0,0.00016596,2]
[363755690,1748862632943,-430.0,0.00016596,2]
[363755691,1748862632953,-430.0,0.00016596,2]
[363755692,1748862632963,-430.0,0.00016596,2]
[363755693,1748862632973,-430.0,0.00016596,2]
[363755694,1748862632983,-570.0,0.00016596,2]
[363755695,1748862632993,-430.0,0.00016596,2]
[363755696,1748862633004,-430.0,0.00016596,2]
[363755697,1748862633014,-430.0,0.00016596,2]
[363755698,1748862633024,-430.0,0.00016596,2]
[363755699,1748862633035,-430.0,0.00016596,2]
[363755700,1748862633046,-430.0,0.00016596,2]
[363755701,1748862633058,-430.0,0.00016596,2]
[363755702,1748862633069,-430.0,0.00016596,2]
[363755703,1748862633079,-430.0,0.00016596,2]
[363755704,1748862633090,-430.0,0.00016596,2]
[363755705,1748862633101,-430.0,0.00016596,2]
[363755706,1748862633111,-458.13971711,0.00016596,2]
[363755707,1748862633122,-430.0,0.00016596,2]
[363755708,1748862633132,-430.0,0.00016596,2]
[363755709,1748862633143,-430.0,0.00016596,2]
[363755710,1748862633154,-430.0,0.00016596,2]
[363755711,1748862633164,-379.36,0.00016596,2]
[363755712,1748862633175,-500.0,0.00016596,2]
[363755713,1748862633185,-430.0,0.00016596,2]
[363755714,1748862633195,-430.0,0.00016596,2]
[363755715,1748862633205,-400.0,0.00016596,2]
[363755716,1748862633215,-430.0,0.00016596,2]
[363755717,1748862633226,-430.0,0.00016596,2]
[363755718,1748862633236,-398.68629981,0.00016596,2]
[363755719,1748862633247,-430.0,0.00016596,2]
[363755720,1748862633258,-400.0,0.00016596,2]
[363755721,1748862633269,-430.0,0.00016596,2]
[363755722,1748862633282,-430.0,0.00016596,2]
[363755723,1748862633293,-430.0,0.00016596,2]
[363755724,1748862633304,-430.0,0.00016596,2]
[363755725,1748862633315,-430.0,0.00016596,2]
[363755726,1748862633326,-400.0,0.00016596,2]
[363755727,1748862633337,-400.0,0.00016596,2]
[363755728,1748862633347,-451.57802046,0.00016596,2]
[363755729,1748862633359,-430.0,0.00016596,2]
[363755730,1748862633370,-400.0,0.00016596,2]
[363755731,1748862633381,-400.0,0.00016596,2]
[363755732,1748862633391,-430.0,0.00016596,2]
[363755733,1748862633403,-400.0,0.00016596,2]
[363755734,1748862633414,-430.62841655,0.00016596,2]
[363755735,1748862633424,-400.0,0.00016596,2]
[363755736,1748862633435,-430.0,0.00016596,2]
[363755737,1748862633446,-430.0,0.00016596,2]
[363755738,1748862633457,-430.0,0.00016596,2]
[363755739,1748862633467,-430.0,0.00016596,2]
[363755740,1748862633477,-430.0,0.00016596,2]
[363755741,1748862633488,-430.0,0.00016596,2]
[363755742,1748862633498,-407.79337554,0.00016596,2]
[363755743,1748862633509,-555.07907724,0.00016596,2]
[363755744,1748862633520,-430.0,0.00016596,2]
[363755745,1748862633535,-430.0,0.00016596,2]
[363755746,1748862633545,-430.0,0.00016596,2]
[363755747,1748862633556,-430.0,0.00016596,2]
[363755748,1748862633567,-430.0,0.00016596,2]
[363755749,1748862633577,-415.22696666,0.00016596,2]
[363755750,1748862633588,-430.0,0.00016596,2]
[363755751,1748862633599,-430.0,0.00016596,2]
[363755752,1748862633610,-450.0,0.00016596,2]
[363755753,1748862633622,-450.0,0.00016596,2]
[363755754,1748862633633,-430.0,0.00016596,2]
[363755755,1748862633644,-400.0,0.00016596,2]
[363755756,1748862633655,-430.0,0.00016596,2]
[363755757,1748862633666,-430.0,0.00016596,2]
[363755758,1748862633677,-430.0,0.00016596,2]